Cogmind - Beta 16 @@@ ROGUE MODE // 2025.11.22 @ 15:37:52 // Winter2019/RPGLIKE Player: Rentaro Result: Self-destructed Performance ------------- Evolutions (1) 500 Regions Visited (2) 400 Robots Destroyed (46) 230 Value Destroyed (1455) 1455 Prototype IDs (3) 60 Alien Tech Used (0) 0 Bonus (57) 57 TOTAL SCORE: 2702 Bonus ------- High Alert Combat Kills 57 Cogmind --------- Core Integrity 434/600 Matter 354/500 Energy 160/160 System Corruption 0% Temperature Cool (0) Movement Flying (31) Location -9/Materials Parts ------- > --- POWER (1) -------- Light Nuclear Core > --- PROPULSION (4) --- Flight Unit Flight Unit Flight Unit Flight Unit > --- UTILITY (5) ------ High-capacity Matter Pod Structural Scanner Signal Interpreter Targeting Computer > --- WEAPON (3) ------- Heavy Assault Rifle Autogun Improved Assault Rifle > --- INVENTORY (1) ---- Advanced Beam Cannon Peak State ------------ > --- POWER ------------ Light Nuclear Core > --- PROPULSION ------- Flight Unit Flight Unit Flight Unit Improved Flight Unit > --- UTILITY ---------- High-capacity Matter Pod Structural Scanner Targeting Computer > --- WEAPON ----------- Assault Rifle Heavy Assault Rifle Improved Assault Rifle > --- INVENTORY -------- Advanced Beam Cannon [Rating: 18] Favorites ----------- Power Light Nuclear Core Engine Light Ion Engine Power Core Light Nuclear Core Propulsion Flight Unit Wheel Compact Wheel Flight Unit Flight Unit Utility Structural Scanner Device Structural Scanner Storage High-capacity Matter Pod Processor Visual Processing Unit Weapon Assault Rifle Energy Gun Small Laser Energy Cannon Advanced Beam Cannon Ballistic Gun Assault Rifle Ballistic Cannon Light Cannon Build | -11 -10 -9 ------- Run | Yrd Mat Mat Slots Evolved 9 | 4 2 3 Power . | . . . Propulsion 3 | 1 1 1 Utility 4 | 1 1 2 Weapon 2 | 2 . . Parts Attached 28 | 6 14 8 Power 2 | 1 1 . Engine 1 | 1 . . Core 1 | . 1 . Reactor . | . . . Propulsion 7 | 2 3 2 Treads . | . . . Leg . | . . . Wheel 2 | 2 . . Hover . | . . . Flight 5 | . 3 2 Utility 7 | . 6 1 Device 1 | . 1 . Storage 2 | . 2 . Processor 4 | . 3 1 Hackware . | . . . Protection . | . . . Artifact . | . . . Weapon 12 | 3 4 5 Energy Gun 2 | 2 . . Energy Cannon 1 | . . 1 Ballistic Gun 8 | 1 3 4 Ballistic Cannon 1 | . 1 . Launcher . | . . . Special Weapon . | . . . Impact Weapon . | . . . Slashing Weapon . | . . . Piercing Weapon . | . . . Special Melee Weapon . | . . . Unidentified Prototypes 3 | . . 3 Parts Lost . | . . . Power . | . . . Propulsion . | . . . Utility . | . . . Weapon . | . . . Highest Loss Streak . | . . . To Critical Strikes . | . . . Average Backups . | . . 1 Power . | . . . Propulsion . | . . . Utility . | . . . Weapon . | . . 1 Tool/Special . | . . . Unused Backups . | . . . Power . | . . . Propulsion . | . . . Utility . | . . . Weapon . | . . . Tool/Special . | . . . Average Slot Usage (%) 90 | . 91 86 Core 9 | . 10 7 Wheel 13 | . 15 . Flight 13 | . 10 28 Device 7 | . 7 7 Storage 1 | . . 7 Processor 9 | . 9 9 Energy Gun 5 | . 7 . Ballistic Gun 24 | . 25 23 Ballistic Cannon 2 | . 2 . Peak Build Rating 18 | 6 13 18 Average Rating 10 | 4 10 15 On Entrance 6 | . 6 12 Avg Prop Armor Cover (%) . | . . . Naked Turns . | . . . Heaviest Build 19 | 7 17 19 Greatest Support 37 | 32 37 21 Greatest Overweight (x) 1 | . 1 . Average Overweight (x) . | . . . Largest Inventory Capacity 1 | . 1 1 Average Capacity . | . 1 1 Most Carried 1 | . 1 1 Average Carried . | . . . Final Capacity 1 | . 1 1 Final Carried 1 | . 1 1 Class Distribution -------------------- 74% | Gunner 15% | Scavenger-Gunner 10% | Scavenger-Sprinter Dominant Class ---------------- Gunner | -10/Materials Scavenger-Sprinter | -9/Materials Resources | -11 -10 -9 ----------- Run | Yrd Mat Mat Matter Collected 1562 | 242 895 425 Remotely . | . . . Salvage Created 1430 | . 789 641 Parts 107 | . 57 50 Haulers Intercepted 4 | . 2 2 Recyclers Shooed 1 | . . 1 Parts Field Recycled . | . . . Retrieved Matter . | . . . Parts Self-Destructed . | . . . Prevented . | . . . Parts Restored . | . . . Kills | -11 -10 -9 ------- Run | Yrd Mat Mat Combat Hostiles Destroyed 34 | . 21 13 Guns 33 | . 20 13 Cannons 1 | . 1 . Classes Destroyed 9 | . 6 3 Worker 1 | . 1 . Builder 1 | . . 1 Hauler 4 | . 2 2 Operator 1 | . 1 . Watcher 5 | . 3 2 Swarmer 7 | . 3 4 Grunt 24 | . 18 6 Duelist 1 | . . 1 Sentry 2 | . . 2 Best Kill Streak 10 | . 6 10 Combat Bots Only 6 | . 6 6 Max Kills in Single Turn 2 | . 2 1 Gunslinging 1 | . 1 . Exploded . | . . . Melee . | . . . Uniques/NPCs Destroyed . | . . . Combat | -11 -10 -9 -------- Run | Yrd Mat Mat Hostile Shots Fired 131 | . 79 52 Missed 34 | . 18 16 Hits 97 | . 61 36 Melee 1 | . . 1 Projectile 96 | . 61 35 Critical Strikes 1 | . 1 . Damage Taken 1421 | . 862 559 Core 1136 | . 691 445 Absorbed by Shields . | . . . Redirected to Core 952 | . 560 392 Core Remaining (%) 98 | 100 96 . Volleys Fired 160 | . 114 46 Largest 3 | . 3 3 Hottest 100 | . 100 69 Shots Fired 398 | . 265 133 Gun 347 | . 216 131 Cannon 51 | . 49 2 Launcher . | . . . Special . | . . . Kinetic 338 | . 207 131 Thermal 40 | . 38 2 Explosive . | . . . Electromagnetic 20 | . 20 . Robot Hit Streak 16 | . 11 16 Robot Miss Streak 4 | . 4 2 Penetration Max . | . . . Secondary Targets 8 | . 6 2 Max Gunslinging Chain 1 | . 1 1 Shots Hit Robots 193 | . 116 77 Core Hits 84 | . 53 31 Critical Kills 1 | . 1 . Critical Parts Destroyed 1 | . . 1 Critical Strikes 4 | . 3 1 Destroy 2 | . 1 1 Corrupt 2 | . 2 . Melee Attacks . | . . . Impact . | . . . Slashing . | . . . Piercing . | . . . Sneak Attacks . | . . . Combat Hostiles . | . . . Follow-up Attacks . | . . . Damage Inflicted 2513 | . 1426 1087 Guns 2380 | . 1293 1087 Cannons 89 | . 89 . Explosions 44 | . 44 . Melee . | . . . Ramming . | . . . Kinetic 1998 | . 911 1087 Thermal 318 | . 318 . Explosive . | . . . Electromagnetic 197 | . 197 . Impact . | . . . Slashing . | . . . Piercing . | . . . Highest Corruption . | . . . Average Corruption . | . . . Corruption Purged . | . . . Corruption Blocked . | . . . Overload Shots . | . . . Overflow Damage . | . . . Projectiles . | . . . Explosions . | . . . Melee . | . . . Knockbacks 3 | . 3 . Impact . | . . . Kinetic 3 | . 3 . Secondary . | . . . Self-Inflicted Damage 163 | . 65 98 Shots 3 | . 2 1 Rammed . | . . . Targets Rammed . | . . . Kicked . | . . . Crushed . | . . . Highest Temperature 300 | . 300 104 Average Temperature 57 | . 66 32 Received Heat Transfer 576 | . 384 192 Effects 1 | . 1 . Energy Bleed 1 | . 1 . Siege Activations . | . . . Martial Activations . | . . . Shielding Activations . | . . . Robots Disrupted . | . . . Combat Hostiles . | . . . Robots Corrupted . | . . . Combat Hostiles . | . . . Parts Fried 1 | . 1 . Impact Corruptions . | . . . Robots Melted . | . . . Combat Hostiles . | . . . Parts Melted . | . . . Heat Transferred 625 | . 625 . Parts Sabotaged . | . . . Parts Stolen . | . . . Parts Stripped . | . . . Power Chain Reactions 1 | . 1 . Alert | -11 -10 -9 ------- Run | Yrd Mat Mat Maximum Alert Level 2 | . 2 2 Low Security (%) 56 | 100 66 . Level 1 25 | . 25 29 Level 2 17 | . 8 70 Level 3 . | . . . Level 4 . | . . . Level 5 . | . . . High Security . | . . . Max Security . | . . . Peak Influence 562 | . 562 550 Initial 237 | . . 237 Average 207 | . 171 419 Influence Increases 1495 | . 1044 451 Destroy 0b10 Robot/C 680 | . 420 260 Destroy 0b10 Robot/NC 60 | . 35 25 Destroy Leader 168 | . 110 58 Successful Hack 9 | . 9 . Select Force Hacks 60 | . 60 . Disable Machine 405 | . 330 75 Destroy Structure 98 | . 65 33 Partial Spotted 15 | . 15 . Influence Decreases 947 | . 482 465 Entered New Map 325 | . . 325 Time Decay 622 | . 482 140 Squads Dispatched 7 | . 7 . Investigation 6 | . 6 . Extermination . | . . . Reinforcement 1 | . 1 . Assault . | . . . Garrison . | . . . Intercept . | . . . Searches Triggered . | . . . Construction Impeded . | . . . Haulers Reinforced . | . . . Active Scanning Responses . | . . . Cargo Convoy Interrupts . | . . . Stealth | -11 -10 -9 --------- Run | Yrd Mat Mat Distress Signals 2 | . 1 1 Communications Jammed . | . . . Distress Signals . | . . . Times Spotted 42 | . 27 15 Peak Tracking Total 6 | . 6 6 Tactical Retreats . | . . . Traps | -11 -10 -9 ------- Run | Yrd Mat Mat Traps Triggered 2 | . 2 . Indirectly . | . . . Trap Hack Attempts . | . . . Triggered . | . . . Disarmed . | . . . Reprogrammed . | . . . Reused . | . . . Traps Extracted . | . . . Installed . | . . . Triggered . | . . . Machines | -11 -10 -9 ---------- Run | Yrd Mat Mat Machines Disabled 27 | . 22 5 Max in Single Turn 3 | . 3 1 Machines Repaired . | . . . Machines Dismantled . | . . . Machines Sabotaged . | . . . Overloaded Fab Kills . | . . . Hacking | -11 -10 -9 --------- Run | Yrd Mat Mat Machines Accessed 9 | . 8 1 Terminals 7 | . 6 1 Fabricators . | . . . Repair Stations . | . . . Recycling Units 2 | . 2 . Scanalyzers . | . . . Garrison Access . | . . . Total Hacks 24 | . 23 1 Successful 10 | . 9 1 Failed 14 | . 14 . Catastrophic 5 | . 5 . Database Lockouts . | . . . Manual 18 | . 17 1 Terminals 18 | . 17 1 Fabricators . | . . . Repair Stations . | . . . Recycling Units 6 | . 6 . Scanalyzers . | . . . Garrison Access . | . . . Terminal Hacks 2 | . 1 1 Branch Access Points 1 | . . 1 Locate Traps 1 | . 1 . Fabricator Hacks . | . . . Repair Station Hacks . | . . . Recycling Unit Hacks 3 | . 3 . Retrieve Components 3 | . 3 . Scanalyzer . | . . . Garrison Access Hacks . | . . . Unauthorized Hacks 5 | . 5 . Terminals 3 | . 3 . Botnet 3 | . 3 . Fabricators . | . . . Repair Stations . | . . . Recycling Units 2 | . 2 . Tunnel 2 | . 2 . Scanalyzers . | . . . Garrison Access . | . . . Data Cores Recovered . | . . . Used . | . . . Hacking Detections 7 | . 7 . Full Trace Events 6 | . 6 . Feedback Events . | . . . Feedback Blocked . | . . . Robot Schematics Acquired . | . . . Robots Built . | . . . Authchips . | . . . Time . | . . . Total Robot Build Rating . | . . . Part Schematics Acquired . | . . . Parts Built . | . . . Authchips . | . . . Time . | . . . Total Part Build Rating . | . . . Part Studies Acquired . | . . . Parts Repaired . | . . . Time . | . . . Parts Recycled . | . . . Recycled Matter . | . . . Retrieved Matter . | . . . Retrieved Components 3 | . 3 . Parts Scanalyzed . | . . . Part Schematics Acquired . | . . . Parts Damaged . | . . . Bothacking | -11 -10 -9 ------------ Run | Yrd Mat Mat Used RIF Installer . | . . . Robots Hacked . | . . . Non-combat . | . . . Combat . | . . . Robot Hacks Applied . | . . . Relay Couplers Released . | . . . Fabnet Peak Effective % . | . . . Robots Rewired . | . . . Allies Hacked . | . . . Hacks Repelled . | . . . Allies | -11 -10 -9 -------- Run | Yrd Mat Mat Total Allies . | . . . Largest Group . | . . . Highest-Rated Group . | . . . Highest-Rated Ally . | . . . Total Orders . | . . . Ally Attacks . | . . . Total Damage . | . . . Kills . | . . . Allies Corrupted . | . . . Allies Melted . | . . . Intel | -11 -10 -9 ------- Run | Yrd Mat Mat Active Infowar (turns) 1448 | . 1159 289 Optics 842 | . 842 . Structural 1262 | . 973 289 Robot Analysis Total . | . . . Derelict Logs Recovered . | . . . Drone Launches . | . . . Drone Recoveries . | . . . Exploration | -11 -10 -9 ------------- Run | Yrd Mat Mat Turns Passed 1788 | 49 1450 289 Spaces Moved 1787 | 42 1476 269 Core 3 | 3 . . Treads . | . . . Legs . | . . . Wheels 719 | 39 680 . Hover . | . . . Flight 1065 | . 796 269 Fastest Speed 31 | 50 34 31 Average Speed 60 | 96 64 31 Slowest Speed 120 | 100 120 34 Overloaded Moves . | . . . Propulsion Burnouts . | . . . Robots Hopped 13 | . 10 3 Potential Cave-ins . | . . . Cave-ins Triggered . | . . . Exploration Rate (%) 43 | 4 100 27 Regions Visited 2 Branch Regions . Pre-discovered Areas 2 | . 2 . Known Exits Taken . | . . . Unknown Exits Taken 2 | 1 1 . Scrap Searched . | . . . Spaces Dug . | . . . Terrain Destroyed 104 | . 66 38 Melee . | . . . Projectile . | . . . AOE 104 | . 66 38 Terrain Rammed . | . . . Walls Destroyed . | . . . Machines Disabled . | . . . Actions | -11 -10 -9 --------- Run | Yrd Mat Mat Total 2174 | 47 1759 368 Wait 132 | . 111 21 Move 1759 | 41 1455 263 Hop 13 | . 10 3 Pick Up 2 | . 2 . Fast Attach 20 | 6 8 6 Attach . | . . . Detach 3 | . 2 1 Swap 19 | . 11 8 Drop 14 | . 7 7 Fire 160 | . 114 46 Melee . | . . . Ram . | . . . Kick . | . . . Crush . | . . . Escape Stasis . | . . . Rewire . | . . . Trap . | . . . Miscellaneous 52 | . 39 13 Route ------- -11/Scrapyard -10/Materials (discovered 6 exits: *Mat x3 / [*Min x2] / [*Sub]) -9/Materials (discovered 1 exit: Min) History --------- Turn | Location | Event 3 | -11/Scrapyard | Upgraded with Propulsion slot (x1) 3 | -11/Scrapyard | Upgraded with Utility slot (x1) 3 | -11/Scrapyard | Upgraded with Weapon slot (x2) 13 | -11/Scrapyard | Discovered new exit (range 15) 50 | -11/Scrapyard | Entered Materials 204 | -10/Materials | Discovered new exit (range 11) 330 | -10/Materials | Build established: Gunner 472 | -10/Materials | Discovered new exit (range 11) 511 | -10/Materials | Discovered new exit (range 4) 658 | -10/Materials | Discovered new exit (range 5) 802 | -10/Materials | Discovered new exit (range 17) 889 | -10/Materials | Reached level 2 949 | -10/Materials | Discovered new exit (range 15) 1047 | -10/Materials | Upgraded with Propulsion slot (x1) 1047 | -10/Materials | Upgraded with Utility slot (x1) 1130 | -10/Materials | Reached level 3 1495 | -10/Materials | Reached level 4 1500 | -10/Materials | Entered another Materials area 1502 | -9/Materials | Reached level 5 1531 | -9/Materials | Upgraded with Propulsion slot (x1) 1531 | -9/Materials | Upgraded with Utility slot (x2) 1632 | -9/Materials | Core integrity fell below 50% 1714 | -9/Materials | Reached level 6 1789 | -9/Materials | Identified exit to Mines 1789 | -9/Materials | Self-destructed Last Messages --------------- 01705_ Acquired Signal Interpreter. 01714_ Electrolysis Chamber disabled. 01714_ Reached level 6. 01717_ Electrolysis Chamber disabled. 01746_ Destroyed Lgt. Nuclear Core. 01749_ G-47 Trooper destroyed. 01753_ G-34 Mercenary destroyed. 01762_ Acquired 100 matter. 01768_ Used Protomatter to restore core integrity (+138, depleted) 01778_ Dropped Assault Rifle. 01782_ W-16 Scout destroyed. 01782_ K-01 Serf sends out distress signal. 01786_ Acquired 14 matter. 01789_ Connecting with Terminal... 01789_ Current location identified: Materials >>Access(Branch) Found 1 branch access point: (49,48) Mines Map updated. Map ----- +----------------------------------------------------+ | # " # ##################### #### | | # """ # ##################### #### | | # # ##?????????????????## | | # # ##?????????????????## | | # # ##?????????????????## | | ####### ##?????????????????########+ | | ####### ##????????????????? #! | | ?????## ##???????????????????? # | | ?????## ##???????????????????? # |] | | ####### ##???????????????????? # | | | ####### ##???????????????????? # | | # # ###########??????????? # | | # # ###########??????????? ##### | | # """ # # ##???????????###### | | # """ + # ##????????????????? | | # """ # # ##????????????????? | | # # # ##????????????????? | | # | # # ##????????????????? | | ####### # ##????????????????? | | # # # ##????????????????? | | # """ #^ # = ##????????????????? | | # """ + " * = ###???????????????? | | # """ # ######+#####???????????????? | | # # # ##???????????????? | | #[ ! # #"" ##???????????????? | | # # #"T@ ##???????????????? | | # !| [# #"" ##???????????????? | | # != # # ##???????????????? | | # # a k + ???????????????? | | # # # ! ##???????????????? | | ####### # ##???????????????? | | ####### ############???????????????? | | ????? # # #####???????????????? | | ????? # # ?????????????????????????? | | ????? # # ?????????????????????????? | | ??????? + ?????????????????????????? | | ??????? ???????????????????????????? | | ?????????????????????????????????????? | | ?????????????????????????????????????? | | ?????????????????????????????????????? | | ?????????????????????????????????????? | | ?????????????????????????????????????? | | ?????????????????????????????????????? | | ?????????????????????????????????????? | | ?????????????????????????????????????? | | ?????????????????????????????????????? | | ?????????????????????????????????????? | | ?????????????????????????????????????? | | ?????????????????????????????????????? | | ?????????????????????????????????????? | +----------------------------------------------------+ Best States ------------- Heat Dissipation 31 Energy Generation 14 Energy Capacity 160 Matter Stores 500 Matter Capacity 500 Sight Range 18 Terrain Scan Density 10 Evasion (%) 63 Targeting Accuracy 5 Offensive Hacking 5 Item Schematics ----------------- None Robot Schematics ------------------ None Fabricated ------------ Nothing Repaired ---------- Nothing Studied --------- None Alien Tech Used ----------------- None Achievements -------------- None Challenges ------------ None RPGLIKE | -11 -10 -9 --------- Run | Yrd Mat Mat Levels Raised 5 | . 3 2 XP Earned 11002 | 3000 4550 3452 XP Spent 9000 | 2300 1950 4750 Upgrades 15 | 4 4 7 Propulsion Slot 3 | 1 1 1 Utility Slot 4 | 1 1 2 Weapon Slot 2 | 2 . . Heat Dissipation 1 | . . 1 Mass Support 1 | . 1 . Inventory Capacity 1 | . 1 . Ranged Accuracy 2 | . . 2 Hack Attack % 1 | . . 1 Protomatter Created 486 | . 351 135 Integrity Restored 1096 | . 793 303 Core 970 | . 667 303 Parts 126 | . 126 . Protomatter Decayed 37 | . 37 . Game ------ Seed TacticalPulseStripper Manual? 0 Play Time 00:19:22 Cumulative 205.5 hours Start 2025.11.22 @ 15:01:10 End 2025.11.22 @ 15:37:52 Sessions 1 Manual Loads 0 Difficulty Rogue Special Mode Winter2019/RPGLIKE Game No. 65 Rogue 65 Adventurer 0 Explorer 0 Win Type - Total 7 Types 2/1/1/3/0/0/0/0/0/0 Lore% 62 Gallery% 59 Achievement% 59 Wizard Run 0 Options --------- Layout 2 ASCII 0 Keyboard 0 Movement Mouse Keybinds 1 Fullscreen 2 Font 20/X11 Map View 64x51 Zoom Use 0% Tactical HUD 1 Map Filters NONE Filters NONE Steam 1 RUN: a7217d89-2b03-49d6-b630-dacd005a376a